[Event "*** Titled Tuesday Blitz"]
[Site "Chess.com"]
[Date "2020.05.05"]
[Round "3"]
[White "Dii210"]
[Black "Ave_Mariia"]
[Result "1-0"]
[WhiteElo "2039"]
[BlackElo "2283"]
[TimeControl "180+1"]
[EndTime "10:26:14 PDT"]
[Termination "Dii210 won by resignation"]

1. c4 {[%clk 0:03:00.9]} 1... d6 {[%clk 0:02:57.1]} 2. Nc3 {[%clk 0:03:00.4]}
2... g6 {[%clk 0:02:57.1]} 3. g3 {[%clk 0:03:00.6]} 3... Bg7 {[%clk 0:02:57.5]}
4. Bg2 {[%clk 0:03:01]} 4... e5 {[%clk 0:02:57.9]} 5. e3 {[%clk 0:03:01.1]} 5...
f5 {[%clk 0:02:58.2]} 6. Nge2 {[%clk 0:03:01.3]} 6... Nf6 {[%clk 0:02:58.5]} 7.
O-O {[%clk 0:03:01.5]} 7... O-O {[%clk 0:02:58.8]} 8. d4 {[%clk 0:03:01.6]} 8...
Nbd7 {[%clk 0:02:49.9]} 9. b3 {[%clk 0:02:59.7]} 9... c6 {[%clk 0:02:48.5]} 10.
Ba3 {[%clk 0:02:58.6]} 10... exd4 {[%clk 0:02:26.1]} 11. Nxd4 {[%clk 0:02:50.2]}
11... Nc5 {[%clk 0:02:20]} 12. Rc1 {[%clk 0:02:49.3]} 12... Nfe4 {[%clk
0:01:56.8]} 13. Nxe4 {[%clk 0:02:35.9]} 13... Nxe4 {[%clk 0:01:54.4]} 14. Qd3
{[%clk 0:02:30.5]} 14... Re8 {[%clk 0:01:49.1]} 15. Rfd1 {[%clk 0:02:29.3]}
15... Bd7 {[%clk 0:01:30.2]} 16. Nf3 {[%clk 0:02:23.8]} 16... Bf8 {[%clk
0:01:07.3]} 17. Nd2 {[%clk 0:02:18.5]} 17... Qe7 {[%clk 0:01:00.2]} 18. Nxe4
{[%clk 0:02:13.6]} 18... fxe4 {[%clk 0:01:00.2]} 19. Qxd6 {[%clk 0:02:12.6]}
19... Qf6 {[%clk 0:00:53.6]} 20. Qxf6 {[%clk 0:02:08]} 1-0

[Event "*** Titled Tuesday Blitz"]
[Site "Chess.com"]
[Date "2020.05.05"]
[Round "3"]
[White "Quaternitychess"]
[Black "Sosat98"]
[Result "1-0"]
[WhiteElo "2379"]
[BlackElo "2676"]
[TimeControl "180+1"]
[EndTime "10:26:24 PDT"]
[Termination "Quaternitychess won by resignation"]

1. e4 {[%clk 0:03:00.9]} 1... e5 {[%clk 0:02:57.4]} 2. Nf3 {[%clk 0:03:00]} 2...
Nc6 {[%clk 0:02:57.8]} 3. d4 {[%clk 0:02:59.9]} 3... exd4 {[%clk 0:02:58]} 4.
Nxd4 {[%clk 0:03:00.8]} 4... Nf6 {[%clk 0:02:58.6]} 5. Nxc6 {[%clk 0:03:00.8]}
5... bxc6 {[%clk 0:02:59.3]} 6. e5 {[%clk 0:03:01.3]} 6... Qe7 {[%clk
0:02:59.9]} 7. Qe2 {[%clk 0:03:01.3]} 7... Nd5 {[%clk 0:03:00.6]} 8. c4 {[%clk
0:03:01.8]} 8... Nb6 {[%clk 0:03:01.2]} 9. Nc3 {[%clk 0:03:00.7]} 9... a5 {[%clk
0:03:01.5]} 10. Bd2 {[%clk 0:02:38.7]} 10... a4 {[%clk 0:03:00.5]} 11. Qe4
{[%clk 0:02:37]} 11... g6 {[%clk 0:03:00.1]} 12. Bd3 {[%clk 0:02:35.4]} 12...
Bg7 {[%clk 0:03:00.1]} 13. O-O {[%clk 0:02:35.6]} 13... O-O {[%clk 0:02:59.4]}
14. Rfe1 {[%clk 0:02:32.2]} 14... Re8 {[%clk 0:02:46.7]} 15. Re3 {[%clk
0:02:01.3]} 15... Qc5 {[%clk 0:02:29.7]} 16. Qh4 {[%clk 0:01:55.2]} 16... Ba6
{[%clk 0:02:15.8]} 17. Ne4 {[%clk 0:01:44.9]} 17... Qxe5 {[%clk 0:01:39.8]} 18.
Bc3 {[%clk 0:01:44.1]} 18... Qh5 {[%clk 0:01:13.2]} 19. Nf6+ {[%clk 0:01:43.3]}
19... Bxf6 {[%clk 0:01:10.8]} 20. Qxf6 {[%clk 0:01:44.2]} 1-0

[Event "*** Titled Tuesday Blitz"]
[Site "Chess.com"]
[Date "2020.05.05"]
[Round "3"]
[White "Noam_Vitenberg"]
[Black "swimmerchess"]
[Result "0-1"]
[WhiteElo "2497"]
[BlackElo "2734"]
[TimeControl "180+1"]
[EndTime "10:26:29 PDT"]
[Termination "swimmerchess won by resignation"]

1. d4 {[%clk 0:03:00.9]} 1... Nf6 {[%clk 0:03:00]} 2. c4 {[%clk 0:03:00.3]} 2...
g6 {[%clk 0:03:00.2]} 3. Nc3 {[%clk 0:02:59.4]} 3... Bg7 {[%clk 0:03:01.1]} 4.
e4 {[%clk 0:02:59.1]} 4... d6 {[%clk 0:03:02]} 5. h3 {[%clk 0:02:56.8]} 5... O-O
{[%clk 0:03:02]} 6. Be3 {[%clk 0:02:56.3]} 6... e5 {[%clk 0:03:02.5]} 7. d5
{[%clk 0:02:56.2]} 7... Na6 {[%clk 0:03:02.6]} 8. g4 {[%clk 0:02:55.1]} 8... Nc5
{[%clk 0:03:02.9]} 9. f3 {[%clk 0:02:55.1]} 9... a5 {[%clk 0:03:02.4]} 10. Nge2
{[%clk 0:02:54.2]} 10... h5 {[%clk 0:03:02.3]} 11. Ng3 {[%clk 0:02:52.1]} 11...
h4 {[%clk 0:03:01.6]} 12. Nge2 {[%clk 0:02:51.8]} 12... Nh7 {[%clk 0:03:02.2]}
13. Qd2 {[%clk 0:02:50.4]} 13... Bf6 {[%clk 0:03:02]} 14. Bg2 {[%clk 0:02:05.6]}
14... Bg5 {[%clk 0:02:58.6]} 15. O-O-O {[%clk 0:02:03.4]} 15... b6 {[%clk
0:02:47.2]} 16. f4 {[%clk 0:02:01]} 16... exf4 {[%clk 0:02:46.3]} 17. Bxf4
{[%clk 0:02:01.9]} 17... Ba6 {[%clk 0:02:42.5]} 18. Nb5 {[%clk 0:01:49.2]} 18...
Bxb5 {[%clk 0:02:36.2]} 19. cxb5 {[%clk 0:01:43.7]} 19... Re8 {[%clk 0:02:32.3]}
20. Nc3 {[%clk 0:01:30.6]} 20... Bxf4 {[%clk 0:02:30.7]} 21. Qxf4 {[%clk
0:01:29.3]} 21... Qg5 {[%clk 0:02:31.6]} 22. Rhf1 {[%clk 0:01:27.7]} 22... Qxf4+
{[%clk 0:02:30.4]} 23. Rxf4 {[%clk 0:01:26.5]} 23... Ng5 {[%clk 0:02:31.3]} 24.
Rd4 {[%clk 0:00:32]} 24... Re5 {[%clk 0:02:26.6]} 25. a3 {[%clk 0:00:30.7]}
25... Nb3+ {[%clk 0:02:25.8]} 0-1

[Event "*** Titled Tuesday Blitz"]
[Site "Chess.com"]
[Date "2020.05.05"]
[Round "3"]
[White "MichailovM"]
[Black "Savagelittlemole"]
[Result "0-1"]
[WhiteElo "2365"]
[BlackElo "2577"]
[TimeControl "180+1"]
[EndTime "10:26:34 PDT"]
[Termination "Savagelittlemole won by resignation"]

1. e4 {[%clk 0:03:00.5]} 1... c5 {[%clk 0:02:58.4]} 2. Nf3 {[%clk 0:02:56.8]}
2... d6 {[%clk 0:02:58.5]} 3. d4 {[%clk 0:02:57.4]} 3... cxd4 {[%clk 0:02:59.4]}
4. Nxd4 {[%clk 0:02:58.3]} 4... Nf6 {[%clk 0:02:59]} 5. Nc3 {[%clk 0:02:58.9]}
5... a6 {[%clk 0:02:58.1]} 6. Bg5 {[%clk 0:02:59.3]} 6... Nbd7 {[%clk
0:02:57.4]} 7. f4 {[%clk 0:02:58.3]} 7... Qc7 {[%clk 0:02:57.8]} 8. Qf3 {[%clk
0:02:56]} 8... h6 {[%clk 0:02:57.3]} 9. Bxf6 {[%clk 0:02:54.2]} 9... Nxf6 {[%clk
0:02:58.2]} 10. Be2 {[%clk 0:02:51.5]} 10... e5 {[%clk 0:02:54.6]} 11. Nb3
{[%clk 0:02:48.1]} 11... Be7 {[%clk 0:02:52.3]} 12. O-O-O {[%clk 0:02:47.4]}
12... O-O {[%clk 0:02:50]} 13. f5 {[%clk 0:02:38.1]} 13... b5 {[%clk 0:02:47.3]}
14. a3 {[%clk 0:02:38.1]} 14... Bb7 {[%clk 0:02:43.7]} 15. g4 {[%clk 0:02:29.9]}
15... Rac8 {[%clk 0:02:34.9]} 16. Rd2 {[%clk 0:02:24.2]} 16... Rfd8 {[%clk
0:02:25]} 17. h4 {[%clk 0:02:23.7]} 17... d5 {[%clk 0:02:20.2]} 18. g5 {[%clk
0:00:56.6]} 18... Nxe4 {[%clk 0:02:12.4]} 19. f6 {[%clk 0:00:48.9]} 19... Nxd2
{[%clk 0:02:09.2]} 20. Nxd2 {[%clk 0:00:43.6]} 20... d4 {[%clk 0:02:07.2]} 0-1

[Event "*** Titled Tuesday Blitz"]
[Site "Chess.com"]
[Date "2020.05.05"]
[Round "3"]
[White "elohunter1999"]
[Black "PavlovDanila"]
[Result "1-0"]
[WhiteElo "2509"]
[BlackElo "2701"]
[TimeControl "180+1"]
[EndTime "10:26:35 PDT"]
[Termination "elohunter1999 won by resignation"]

1. e4 {[%clk 0:03:00.9]} 1... e6 {[%clk 0:03:00.2]} 2. d4 {[%clk 0:02:58.6]}
2... d5 {[%clk 0:03:00.4]} 3. Nc3 {[%clk 0:02:59.1]} 3... Nf6 {[%clk 0:03:00.3]}
4. e5 {[%clk 0:02:58.8]} 4... Nfd7 {[%clk 0:03:00.7]} 5. f4 {[%clk 0:02:59.1]}
5... c5 {[%clk 0:03:01.3]} 6. Nf3 {[%clk 0:02:59.4]} 6... Nc6 {[%clk 0:03:01.9]}
7. Be3 {[%clk 0:02:59.6]} 7... cxd4 {[%clk 0:03:02.5]} 8. Nxd4 {[%clk
0:02:58.5]} 8... Bc5 {[%clk 0:03:03.4]} 9. Qd2 {[%clk 0:02:56.4]} 9... O-O
{[%clk 0:03:03.2]} 10. O-O-O {[%clk 0:02:56.2]} 10... a6 {[%clk 0:03:02.8]} 11.
Qf2 {[%clk 0:02:52.7]} 11... Nxd4 {[%clk 0:03:02.8]} 12. Bxd4 {[%clk 0:02:51.7]}
12... Qe7 {[%clk 0:03:03.3]} 13. g3 {[%clk 0:02:43.5]} 13... b5 {[%clk
0:03:03.1]} 14. Bd3 {[%clk 0:02:17]} 14... Bb7 {[%clk 0:02:59.3]} 15. Ne2 {[%clk
0:02:10.9]} 15... Rac8 {[%clk 0:02:54.7]} 16. Kb1 {[%clk 0:02:10.9]} 16... Bxd4
{[%clk 0:02:54.2]} 17. Nxd4 {[%clk 0:02:07.9]} 17... Nc5 {[%clk 0:02:54.4]} 18.
h4 {[%clk 0:02:06]} 18... Ne4 {[%clk 0:02:52.3]} 19. Qe3 {[%clk 0:02:01.9]}
19... f6 {[%clk 0:02:45.7]} 20. exf6 {[%clk 0:02:00.1]} 20... Qxf6 {[%clk
0:02:44.5]} 21. Nf3 {[%clk 0:01:51.7]} 21... d4 {[%clk 0:02:25.3]} 22. Nxd4
{[%clk 0:01:41.5]} 22... Nxg3 {[%clk 0:01:51.2]} 23. Rhg1 {[%clk 0:01:32.3]}
23... Nf5 {[%clk 0:01:33.3]} 24. Qxe6+ {[%clk 0:01:31.9]} 24... Qxe6 {[%clk
0:01:28.5]} 25. Nxe6 {[%clk 0:01:32.8]} 25... Nxh4 {[%clk 0:01:23.1]} 26. Rxg7+
{[%clk 0:01:30.9]} 26... Kh8 {[%clk 0:01:23]} 27. Rxh7+ {[%clk 0:01:30.1]} 1-0

[Event "*** Titled Tuesday Blitz"]
[Site "Chess.com"]
[Date "2020.05.05"]
[Round "3"]
[White "Redbandit87"]
[Black "EfrenRamos1"]
[Result "1-0"]
[WhiteElo "2439"]
[BlackElo "2203"]
[TimeControl "180+1"]
[EndTime "10:26:40 PDT"]
[Termination "Redbandit87 won by resignation"]

1. d4 {[%clk 0:03:00.9]} 1... d5 {[%clk 0:02:58.3]} 2. Bf4 {[%clk 0:02:59.8]}
2... e6 {[%clk 0:02:56]} 3. e3 {[%clk 0:02:59.7]} 3... Bd6 {[%clk 0:02:54.6]} 4.
Bxd6 {[%clk 0:02:58.3]} 4... cxd6 {[%clk 0:02:53.2]} 5. Qg4 {[%clk 0:02:59.2]}
5... Kf8 {[%clk 0:02:43.1]} 6. Nd2 {[%clk 0:02:57.9]} 6... Nf6 {[%clk
0:02:38.3]} 7. Qg3 {[%clk 0:02:53.8]} 7... h5 {[%clk 0:02:36.3]} 8. h4 {[%clk
0:02:53.3]} 8... Nc6 {[%clk 0:02:34.4]} 9. c3 {[%clk 0:02:52.3]} 9... e5 {[%clk
0:02:32.6]} 10. Ngf3 {[%clk 0:02:50.7]} 10... Ng4 {[%clk 0:02:27.9]} 11. Be2
{[%clk 0:02:46.6]} 11... g6 {[%clk 0:02:18.6]} 12. O-O-O {[%clk 0:02:43.7]}
12... Qa5 {[%clk 0:02:15.8]} 13. Kb1 {[%clk 0:02:43.5]} 13... Bf5+ {[%clk
0:02:13.2]} 14. Ka1 {[%clk 0:02:41.7]} 14... f6 {[%clk 0:02:01.6]} 15. Nb3
{[%clk 0:02:39.3]} 15... Qa4 {[%clk 0:02:00]} 16. dxe5 {[%clk 0:02:35]} 16...
Bc2 {[%clk 0:01:55.3]} 17. Nfd4 {[%clk 0:02:13.3]} 17... Bxd1 {[%clk 0:01:41.2]}
18. Rxd1 {[%clk 0:02:14.2]} 18... dxe5 {[%clk 0:01:38.9]} 19. Bb5 {[%clk
0:02:08.6]} 19... exd4 {[%clk 0:00:59.9]} 20. Bxa4 {[%clk 0:02:02.3]} 20... dxc3
{[%clk 0:00:59.5]} 21. bxc3 {[%clk 0:02:00.7]} 21... Ne7 {[%clk 0:00:58]} 22.
Nc5 {[%clk 0:01:51.6]} 22... Kf7 {[%clk 0:00:56.3]} 23. Bb3 {[%clk 0:01:50.8]}
23... Rhd8 {[%clk 0:00:51.3]} 24. Nxb7 {[%clk 0:01:50.5]} 24... Rdc8 {[%clk
0:00:47.2]} 25. Nd6+ {[%clk 0:01:50.5]} 1-0

[Event "*** Titled Tuesday Blitz"]
[Site "Chess.com"]
[Date "2020.05.05"]
[Round "3"]
[White "Micki-taryan"]
[Black "Mikhail_Biryukov"]
[Result "1/2-1/2"]
[WhiteElo "3072"]
[BlackElo "2677"]
[TimeControl "180+1"]
[EndTime "10:26:56 PDT"]
[Termination "Game drawn by repetition"]

1. d4 {[%clk 0:03:00.9]} 1... Nf6 {[%clk 0:02:59.3]} 2. Nf3 {[%clk 0:03:00.2]}
2... e6 {[%clk 0:02:59.3]} 3. c4 {[%clk 0:03:00.6]} 3... d5 {[%clk 0:02:59]} 4.
Nc3 {[%clk 0:03:00.8]} 4... Bb4 {[%clk 0:02:57.6]} 5. Qa4+ {[%clk 0:02:58.8]}
5... Nc6 {[%clk 0:02:56.2]} 6. e3 {[%clk 0:02:58.9]} 6... O-O {[%clk 0:02:52.5]}
7. Qc2 {[%clk 0:02:59]} 7... a6 {[%clk 0:02:47.5]} 8. Bd2 {[%clk 0:02:58]} 8...
dxc4 {[%clk 0:02:46.7]} 9. Bxc4 {[%clk 0:02:57.5]} 9... Bd6 {[%clk 0:02:46.6]}
10. a3 {[%clk 0:02:57.5]} 10... e5 {[%clk 0:02:45.5]} 11. d5 {[%clk 0:02:56.6]}
11... Ne7 {[%clk 0:02:42.1]} 12. e4 {[%clk 0:02:52.9]} 12... Bg4 {[%clk
0:02:26.3]} 13. Be2 {[%clk 0:02:49.1]} 13... c6 {[%clk 0:01:59.1]} 14. O-O
{[%clk 0:02:41.6]} 14... cxd5 {[%clk 0:01:58.2]} 15. exd5 {[%clk 0:02:41.9]}
15... Rc8 {[%clk 0:01:57.7]} 16. h3 {[%clk 0:02:27.2]} 16... Bh5 {[%clk
0:01:54.5]} 17. Qb3 {[%clk 0:02:27.3]} 17... e4 {[%clk 0:01:53.1]} 18. Nd4
{[%clk 0:02:25.7]} 18... Bxe2 {[%clk 0:01:52.7]} 19. Ndxe2 {[%clk 0:02:26.6]}
19... Nexd5 {[%clk 0:01:52.7]} 20. Bg5 {[%clk 0:02:24]} 20... Nxc3 {[%clk
0:01:51.2]} 21. Nxc3 {[%clk 0:02:24.9]} 21... Qe7 {[%clk 0:01:51]} 22. Bxf6
{[%clk 0:02:14]} 22... Qxf6 {[%clk 0:01:51.3]} 23. Nxe4 {[%clk 0:02:11.3]} 23...
Qe5 {[%clk 0:01:51.5]} 24. Nxd6 {[%clk 0:02:11.4]} 24... Qxd6 {[%clk 0:01:51.9]}
25. Rad1 {[%clk 0:02:09.7]} 25... Qc6 {[%clk 0:01:51.7]} 26. Rd4 {[%clk
0:02:06.9]} 26... Rfd8 {[%clk 0:01:51.1]} 27. Rfd1 {[%clk 0:02:04.5]} 27... Rxd4
{[%clk 0:01:50.5]} 28. Rxd4 {[%clk 0:02:05.4]} 28... Qc1+ {[%clk 0:01:47.2]} 29.
Rd1 {[%clk 0:02:04]} 29... Qc7 {[%clk 0:01:47.2]} 30. Qd5 {[%clk 0:02:02.6]}
30... g6 {[%clk 0:01:45.7]} 31. g3 {[%clk 0:02:02.8]} 31... Qc6 {[%clk
0:01:44.8]} 32. Qd4 {[%clk 0:02:00.4]} 32... Re8 {[%clk 0:01:44.6]} 33. h4
{[%clk 0:01:59.8]} 33... h5 {[%clk 0:01:44.2]} 34. b4 {[%clk 0:01:59.8]} 34...
Re2 {[%clk 0:01:42.9]} 35. Qd8+ {[%clk 0:01:58.2]} 35... Kg7 {[%clk 0:01:41.4]}
36. Qd4+ {[%clk 0:01:58.4]} 36... Kg8 {[%clk 0:01:41.3]} 37. Qf4 {[%clk
0:01:58.4]} 37... Kg7 {[%clk 0:01:37.2]} 38. Qd4+ {[%clk 0:01:31.3]} 38... Kg8
{[%clk 0:01:36.8]} 1/2-1/2

[Event "*** Titled Tuesday Blitz"]
[Site "Chess.com"]
[Date "2020.05.05"]
[Round "3"]
[White "Parhamov"]
[Black "SerGo055"]
[Result "1-0"]
[WhiteElo "3004"]
[BlackElo "2600"]
[TimeControl "180+1"]
[EndTime "10:26:59 PDT"]
[Termination "Parhamov won by resignation"]

1. e4 {[%clk 0:03:00.9]} 1... d5 {[%clk 0:02:59.1]} 2. exd5 {[%clk 0:02:58.9]}
2... Qxd5 {[%clk 0:02:52.2]} 3. Nc3 {[%clk 0:02:58.6]} 3... Qd8 {[%clk
0:02:51.6]} 4. d4 {[%clk 0:02:58.4]} 4... Nf6 {[%clk 0:02:48.8]} 5. Bc4 {[%clk
0:02:58.3]} 5... c6 {[%clk 0:02:46.9]} 6. Nf3 {[%clk 0:02:56.1]} 6... Bf5 {[%clk
0:02:44.2]} 7. Ne5 {[%clk 0:02:56]} 7... e6 {[%clk 0:02:22.3]} 8. g4 {[%clk
0:02:55.5]} 8... Be4 {[%clk 0:02:22.4]} 9. Nxe4 {[%clk 0:02:53]} 9... Nxe4
{[%clk 0:02:23.3]} 10. Qf3 {[%clk 0:02:51.5]} 10... Nd6 {[%clk 0:02:23.1]} 11.
Bb3 {[%clk 0:02:47.1]} 11... Nd7 {[%clk 0:02:22.8]} 12. Bf4 {[%clk 0:02:44.7]}
12... a5 {[%clk 0:02:20.5]} 13. a4 {[%clk 0:02:42.4]} 13... Be7 {[%clk
0:02:15.7]} 14. O-O-O {[%clk 0:02:40.3]} 14... Nf6 {[%clk 0:02:10.5]} 15. c4
{[%clk 0:02:37]} 15... O-O {[%clk 0:02:01.6]} 16. h4 {[%clk 0:02:36.7]} 16...
Rc8 {[%clk 0:01:55.1]} 17. g5 {[%clk 0:02:34.4]} 17... Nd7 {[%clk 0:01:46.6]}
18. Bc2 {[%clk 0:02:34.7]} 18... Nf5 {[%clk 0:01:32.5]} 19. h5 {[%clk
0:02:33.6]} 19... Nxe5 {[%clk 0:01:30.6]} 20. dxe5 {[%clk 0:02:32.8]} 20... Qb6
{[%clk 0:01:24.7]} 21. Kb1 {[%clk 0:02:32.7]} 21... Rcd8 {[%clk 0:01:08.1]} 22.
Bxf5 {[%clk 0:02:26.3]} 22... exf5 {[%clk 0:01:07.1]} 23. Qe2 {[%clk 0:02:24.6]}
23... Qb4 {[%clk 0:00:56.3]} 24. e6 {[%clk 0:02:22.2]} 24... fxe6 {[%clk
0:00:47]} 25. Qxe6+ {[%clk 0:02:20.8]} 25... Kh8 {[%clk 0:00:46.8]} 26. h6
{[%clk 0:02:21.4]} 1-0

[Event "*** Titled Tuesday Blitz"]
[Site "Chess.com"]
[Date "2020.05.05"]
[Round "3"]
[White "vanyakuba"]
[Black "semchik73"]
[Result "1-0"]
[WhiteElo "2438"]
[BlackElo "2202"]
[TimeControl "180+1"]
[EndTime "10:26:59 PDT"]
[Termination "vanyakuba won by resignation"]

1. e4 {[%clk 0:03:00.9]} 1... Nf6 {[%clk 0:02:59.7]} 2. e5 {[%clk 0:03:00.8]}
2... Nd5 {[%clk 0:02:59.7]} 3. d4 {[%clk 0:03:01.5]} 3... d6 {[%clk 0:02:59.6]}
4. c4 {[%clk 0:03:01.8]} 4... Nb6 {[%clk 0:02:59.2]} 5. exd6 {[%clk 0:03:02.4]}
5... cxd6 {[%clk 0:02:59.1]} 6. Nc3 {[%clk 0:03:03]} 6... g6 {[%clk 0:02:59.2]}
7. Be3 {[%clk 0:02:55.3]} 7... Bg7 {[%clk 0:02:58.1]} 8. Nf3 {[%clk 0:02:55.3]}
8... O-O {[%clk 0:02:57.2]} 9. h3 {[%clk 0:02:54.9]} 9... Nc6 {[%clk 0:02:57.2]}
10. Be2 {[%clk 0:02:54.4]} 10... e5 {[%clk 0:02:49.5]} 11. O-O {[%clk
0:02:42.5]} 11... f5 {[%clk 0:02:48.6]} 12. c5 {[%clk 0:02:14.8]} 12... exd4
{[%clk 0:02:42]} 13. Nxd4 {[%clk 0:02:12.8]} 13... dxc5 {[%clk 0:02:41.1]} 14.
Nxc6 {[%clk 0:02:07.6]} 14... bxc6 {[%clk 0:02:41.3]} 15. Bxc5 {[%clk
0:02:01.9]} 15... Qxd1 {[%clk 0:02:35.7]} 16. Rfxd1 {[%clk 0:02:02.8]} 16... Re8
{[%clk 0:02:35.9]} 17. Bf3 {[%clk 0:02:02.6]} 17... Bb7 {[%clk 0:02:31.7]} 18.
Nb5 {[%clk 0:01:40.5]} 18... cxb5 {[%clk 0:02:16.5]} 19. Bxb7 {[%clk 0:01:39.7]}
19... Rab8 {[%clk 0:02:16.4]} 20. Bf3 {[%clk 0:01:37.8]} 20... Bxb2 {[%clk
0:02:13.7]} 21. Rab1 {[%clk 0:01:37.3]} 21... Nc4 {[%clk 0:02:04.3]} 22. Bd5+
{[%clk 0:01:10.2]} 22... Kg7 {[%clk 0:02:04]} 23. Bxc4 {[%clk 0:01:09.2]} 23...
bxc4 {[%clk 0:02:03.7]} 24. Rxb2 {[%clk 0:01:08.7]} 24... Rbc8 {[%clk
0:01:54.4]} 25. Bxa7 {[%clk 0:01:06.7]} 25... c3 {[%clk 0:01:53.6]} 26. Bd4+
{[%clk 0:01:05.1]} 26... Kh6 {[%clk 0:01:52.7]} 27. Rc2 {[%clk 0:01:04.3]} 27...
Red8 {[%clk 0:01:52.5]} 28. Be3+ {[%clk 0:01:01.3]} 28... f4 {[%clk 0:01:50.9]}
29. Bxf4+ {[%clk 0:00:59.5]} 29... g5 {[%clk 0:01:51.3]} 30. Rxd8 {[%clk
0:00:58.6]} 30... Rxd8 {[%clk 0:01:51.6]} 31. Be3 {[%clk 0:00:58.7]} 31... Rd3
{[%clk 0:01:50.4]} 32. h4 {[%clk 0:00:57.9]} 32... Kg6 {[%clk 0:01:50.7]} 33.
hxg5 {[%clk 0:00:57.9]} 33... Kf5 {[%clk 0:01:50.7]} 34. Kf1 {[%clk 0:00:58.2]}
34... Ke4 {[%clk 0:01:50.8]} 35. Ke2 {[%clk 0:00:58.6]} 1-0

[Event "*** Titled Tuesday Blitz"]
[Site "Chess.com"]
[Date "2020.05.05"]
[Round "3"]
[White "KoustavChatterjee1"]
[Black "anon219"]
[Result "0-1"]
[WhiteElo "2579"]
[BlackElo "2787"]
[TimeControl "180+1"]
[EndTime "10:27:04 PDT"]
[Termination "anon219 won by resignation"]

1. d4 {[%clk 0:03:00.9]} 1... Nf6 {[%clk 0:02:59.4]} 2. c4 {[%clk 0:03:00.8]}
2... e6 {[%clk 0:02:59.8]} 3. Nc3 {[%clk 0:03:00.5]} 3... Bb4 {[%clk 0:02:59.9]}
4. e3 {[%clk 0:03:00.9]} 4... O-O {[%clk 0:02:59.2]} 5. Bd2 {[%clk 0:03:01.1]}
5... d5 {[%clk 0:02:56.8]} 6. Nf3 {[%clk 0:03:01.3]} 6... c5 {[%clk 0:02:56.4]}
7. a3 {[%clk 0:03:00.7]} 7... Bxc3 {[%clk 0:02:55.5]} 8. Bxc3 {[%clk 0:03:01.6]}
8... cxd4 {[%clk 0:02:56]} 9. Bxd4 {[%clk 0:03:00.8]} 9... Nc6 {[%clk
0:02:54.8]} 10. Bc3 {[%clk 0:03:00.9]} 10... Ne4 {[%clk 0:02:54.9]} 11. Rc1
{[%clk 0:03:00.9]} 11... Nxc3 {[%clk 0:02:49.3]} 12. Rxc3 {[%clk 0:03:01.8]}
12... dxc4 {[%clk 0:02:48]} 13. Qxd8 {[%clk 0:02:56.6]} 13... Rxd8 {[%clk
0:02:48.9]} 14. Bxc4 {[%clk 0:02:56.3]} 14... Bd7 {[%clk 0:02:49.5]} 15. Ke2
{[%clk 0:02:54.5]} 15... Rac8 {[%clk 0:02:49.3]} 16. Rhc1 {[%clk 0:02:52.5]}
16... Kf8 {[%clk 0:02:47.9]} 17. Bd3 {[%clk 0:02:50.5]} 17... Ke7 {[%clk
0:02:43]} 18. b4 {[%clk 0:02:49.4]} 18... a6 {[%clk 0:02:41.7]} 19. Be4 {[%clk
0:02:40.3]} 19... h6 {[%clk 0:02:28.9]} 20. g4 {[%clk 0:02:37.8]} 20... g5
{[%clk 0:02:09.5]} 21. h4 {[%clk 0:02:28.5]} 21... f5 {[%clk 0:02:00.5]} 22.
gxf5 {[%clk 0:02:23.4]} 22... exf5 {[%clk 0:02:01.4]} 23. Bxc6 {[%clk
0:02:22.6]} 23... Bxc6 {[%clk 0:02:01.6]} 24. Nd4 {[%clk 0:01:49.1]} 24... Bd7
{[%clk 0:01:56.8]} 25. hxg5 {[%clk 0:01:45.4]} 25... hxg5 {[%clk 0:01:56.6]} 26.
Rc5 {[%clk 0:01:34.4]} 26... b6 {[%clk 0:01:50]} 27. Re5+ {[%clk 0:01:24.5]}
27... Kf6 {[%clk 0:01:41.1]} 28. Rxc8 {[%clk 0:01:18.6]} 28... Bxc8 {[%clk
0:01:42]} 29. Nc6 {[%clk 0:00:56.6]} 29... Rd6 {[%clk 0:01:41.5]} 0-1

[Event "*** Titled Tuesday Blitz"]
[Site "Chess.com"]
[Date "2020.05.05"]
[Round "3"]
[White "Witaliss"]
[Black "beatnoguera"]
[Result "1-0"]
[WhiteElo "2469"]
[BlackElo "1828"]
[TimeControl "180+1"]
[EndTime "10:27:05 PDT"]
[Termination "Witaliss won by resignation"]

1. d4 {[%clk 0:03:00.9]} 1... d5 {[%clk 0:02:53]} 2. c4 {[%clk 0:03:00.5]} 2...
e6 {[%clk 0:02:47]} 3. Nc3 {[%clk 0:02:59.6]} 3... Nf6 {[%clk 0:02:44.2]} 4.
cxd5 {[%clk 0:02:59.1]} 4... exd5 {[%clk 0:02:43.4]} 5. Bg5 {[%clk 0:02:58.7]}
5... c6 {[%clk 0:02:38.3]} 6. e3 {[%clk 0:02:58.1]} 6... Be7 {[%clk 0:02:37.5]}
7. Bd3 {[%clk 0:02:56.9]} 7... O-O {[%clk 0:02:36.6]} 8. Qc2 {[%clk 0:02:56.2]}
8... Nbd7 {[%clk 0:02:35.4]} 9. Nf3 {[%clk 0:02:55.1]} 9... Re8 {[%clk 0:02:33]}
10. h3 {[%clk 0:02:54.5]} 10... Nf8 {[%clk 0:02:32.3]} 11. O-O-O {[%clk
0:02:53.3]} 11... b5 {[%clk 0:02:26.8]} 12. Ne5 {[%clk 0:02:50.4]} 12... Qb6
{[%clk 0:02:18.1]} 13. Nxc6 {[%clk 0:02:49.3]} 13... Qxc6 {[%clk 0:02:14.4]} 14.
Bxb5 {[%clk 0:02:49.1]} 14... Qe6 {[%clk 0:02:06.3]} 15. Bxe8 {[%clk 0:02:48.5]}
15... Nxe8 {[%clk 0:02:06.6]} 16. Bxe7 {[%clk 0:02:48.1]} 16... Qxe7 {[%clk
0:02:06.2]} 17. Nxd5 {[%clk 0:02:48.1]} 17... Qd6 {[%clk 0:01:56.7]} 18. Nc3
{[%clk 0:02:39.2]} 18... Be6 {[%clk 0:01:53.1]} 19. d5 {[%clk 0:02:38.1]} 19...
Bd7 {[%clk 0:01:47]} 20. e4 {[%clk 0:02:34.5]} 20... Rc8 {[%clk 0:01:45.9]} 21.
Kb1 {[%clk 0:02:32.3]} 21... Ng6 {[%clk 0:01:38.3]} 22. Rhe1 {[%clk 0:02:28.5]}
22... a5 {[%clk 0:01:35]} 23. Qd2 {[%clk 0:02:22]} 23... a4 {[%clk 0:01:30.9]}
24. a3 {[%clk 0:02:18.6]} 24... Rb8 {[%clk 0:01:28.7]} 25. Ka2 {[%clk
0:02:13.2]} 25... Ne5 {[%clk 0:01:28.3]} 26. Qd4 {[%clk 0:02:11.5]} 26... Nf6
{[%clk 0:01:25.5]} 27. f4 {[%clk 0:02:09.1]} 1-0